bitfinex/quotes_ETHUSD_20240709
["timestamp","ask_amount","ask_price","bid_price","bid_amount"]
[1720494727362,2.50976,3072.5,3071.3,3.80594]
[1720494727664,5.65726145,3073.1,3070.9,3.25634]
[1720494727665,2.3398,3072.3,3070.9,3.25634]
[1720494728375,2.3398,3072.3,3071.0,3.0]
[1720494728592,2.3398,3072.3,3071.1,3.25615]
[1720494728993,2.3398,3072.3,3071.2,0.06382692]
[1720494729199,0.23398,3072.2,3071.2,3.06382692]
[1720494730160,0.23398,3072.2,3071.2,3.0]
[1720494730400,0.23398,3072.2,3071.2,3.06382692]
[1720494730704,0.23398,3072.2,3071.2,3.0]
[1720494730901,0.257378,3072.1,3071.0,6.25626]
[1720494731195,0.257378,3072.1,3071.1,0.55]
[1720494731403,2.4797,3072.0,3071.0,3.0]
[1720494731577,2.4797,3072.0,3070.9,3.0]
[1720494731772,2.30460923,3071.9,3070.9,3.0]
[1720494731973,2.30460923,3071.9,3070.6,3.0]
[1720494732317,0.23046092,3071.8,3070.6,3.0]
[1720494732466,0.23046092,3071.8,3070.8,3.25647]
[1720494732805,0.04925329,3071.7,3070.9,3.0]
[1720494733679,0.23046092,3071.8,3070.9,3.0]
[1720494733982,0.29778593,3071.7,3070.9,3.0]
[1720494734180,2.3834,3071.6,3070.7,3.0]
[1720494734386,2.3834,3071.6,3070.8,0.55]
[1720494736906,2.3834,3071.6,3070.8,3.80646]
[1720494737201,2.3834,3071.6,3070.9,3.0]
[1720494737969,2.3834,3071.6,3071.0,3.8062]
[1720494738594,2.3834,3071.6,3071.1,3.25609]
[1720494738801,2.3834,3071.6,3070.9,6.25627]
[1720494740192,2.3834,3071.6,3070.9,3.0]
[1720494740517,2.62174,3071.6,3070.8,3.0]
[1720494740724,2.62174,3071.6,3070.9,0.55]
[1720494740918,0.04880591,3071.5,3070.9,0.55]
[1720494741471,0.04880591,3071.5,3070.8,3.0]
[1720494741898,0.3158605,3071.5,3070.4,3.25687]
[1720494742095,0.26705459,3071.5,3070.5,3.0]
[1720494742309,0.26705459,3071.5,3070.6,0.06387342]
[1720494743205,0.26705459,3071.5,3070.7,3.25655]
[1720494743405,2.3834,3071.6,3070.8,0.06385428]
[1720494743774,2.3834,3071.6,3070.6,3.32045431]
[1720494743975,0.23834,3071.5,3070.7,3.55]
[1720494744375,0.23834,3071.5,3070.7,3.0]
[1720494744573,2.3726,3071.4,3070.2,3.25708]
[1720494744813,0.04870406,3071.3,3070.3,0.55]
[1720494745021,0.04870406,3071.3,3070.3,3.807]
[1720494745223,2.3726,3071.4,3070.3,3.807]
[1720494745520,0.23726,3071.3,3070.3,3.807]
[1720494745727,2.3405,3071.2,3070.3,0.55]
[1720494745886,2.3405,3071.2,3070.2,3.55]
[1720494746081,0.04863182,3071.1,3070.2,6.80703]
[1720494746282,2.3405,3071.2,3070.2,6.80703]
[1720494746283,2.3405,3071.2,3070.2,3.55]
[1720494746501,0.23405,3071.1,3070.2,3.55]
[1720494746907,2.3091,3071.0,3070.1,3.32106575]
[1720494747983,2.3091,3071.0,3070.1,3.25718]
[1720494749396,2.3091,3071.0,3070.2,0.06389351]
[1720494749728,2.3091,3071.0,3070.3,3.80691]
[1720494750101,2.3091,3071.0,3070.3,0.55]
[1720494750295,2.54001,3071.0,3070.2,0.55]
[1720494750694,2.54001,3071.0,3070.0,3.25729]
[1720494750888,2.54001,3071.0,3070.1,3.0]
[1720494751090,2.54001,3071.0,3070.2,0.06390049]
[1720494751389,2.3091,3071.0,3070.2,0.06390049]
[1720494751709,2.3091,3071.0,3070.3,3.80699]
[1720494751897,0.04809416,3070.9,3070.3,3.80699]
[1720494752097,2.3091,3071.0,3070.3,3.80699]
[1720494752991,2.3091,3071.0,3070.3,3.87087157]
[1720494753232,2.3091,3071.0,3070.3,3.80699]
[1720494753535,2.3091,3071.0,3070.4,3.25688]
[1720494753695,2.3091,3071.0,3070.4,3.32075839]
[1720494755632,2.3091,3071.0,3070.5,3.25679]
[1720494755863,2.3091,3071.0,3070.6,0.06387841]
[1720494756890,2.3091,3071.0,3070.7,3.25649]
[1720494757134,2.3091,3071.0,3070.8,3.32033918]
[1720494757338,2.3091,3071.0,3070.7,3.25649]
[1720494759737,2.3091,3071.0,3070.5,3.25679]
[1720494760051,2.3091,3071.0,3070.6,0.55]
[1720494760213,2.3091,3071.0,3070.3,3.25697]
[1720494760413,2.3091,3071.0,3070.4,0.55]
[1720494760935,2.3091,3071.0,3070.4,3.25689]
[1720494761309,2.3091,3071.0,3070.1,3.0]
[1720494761310,2.54001,3071.0,3070.1,3.0]
[1720494761707,1.12832167,3070.9,3070.1,3.0]
[1720494761914,2.54001,3071.0,3070.1,6.25721]
[1720494762327,1.12832918,3070.9,3070.1,6.25721]
[1720494762499,2.54001,3071.0,3070.1,6.25721]
[1720494762699,1.38235099,3070.9,3070.1,6.25721]
[1720494763009,0.04694578,3070.8,3070.1,6.25721]
[1720494763539,0.254001,3070.9,3070.1,6.25721]
[1720494763720,0.04662302,3070.8,3070.1,6.25721]
[1720494764121,0.254001,3070.9,3070.1,6.25721]
[1720494764418,0.04662302,3070.8,3070.1,6.25721]
[1720494764626,0.04662302,3070.8,3070.4,3.25688]
[1720494764847,2.3091,3071.0,3070.5,0.06387934]
[1720494765141,2.3091,3071.0,3070.5,3.25669]
[1720494765347,2.54001,3071.0,3070.2,3.2571]
[1720494765544,2.54001,3071.0,3070.3,6.257]
[1720494765837,1.12829727,3070.9,3070.3,6.257]
[1720494766049,2.54001,3071.0,3070.3,6.257]
[1720494766199,1.12829831,3070.9,3070.3,6.257]
[1720494766400,0.0468103,3070.8,3070.3,6.257]
[1720494766655,2.54001,3071.0,3070.3,6.257]
[1720494766818,1.1283006,3070.9,3070.3,6.257]
[1720494767018,0.0469478,3070.9,3070.3,6.257]
[1720494767943,0.0469478,3070.9,3070.3,3.0]
[1720494768155,0.0469478,3070.9,3070.2,3.0]
[1720494768503,0.0469478,3070.9,3070.3,3.25699]
[1720494769368,1.12828077,3070.8,3070.3,3.25699]
[1720494769652,0.0468418,3070.7,3070.3,3.25699]
[1720494770010,2.54001,3071.0,3070.3,3.25699]
[1720494770344,1.12827967,3070.9,3070.3,3.25699]
[1720494770503,1.12827967,3070.8,3070.2,3.0]
[1720494770951,0.04679517,3070.7,3070.2,3.0]
[1720494771321,0.04679517,3070.7,3070.2,6.2571]
[1720494771721,2.54001,3071.0,3070.2,6.2571]
[1720494771942,1.38230836,3070.9,3070.2,6.2571]
[1720494772156,1.12830736,3070.8,3070.2,6.2571]
[1720494772315,1.17510455,3070.8,3070.2,6.2571]
[1720494772521,1.12830736,3070.7,3070.2,6.2571]
[1720494772860,0.0467118,3070.6,3070.2,6.2571]
[1720494773022,0.0467118,3070.6,3070.3,3.257]
[1720494773225,2.3091,3071.0,3070.2,6.2571]
[1720494773424,0.0466691,3070.5,3070.2,6.2571]
[1720494773633,0.23091,3070.9,3070.2,6.2571]
[1720494773861,0.23091,3070.9,3070.2,9.51414]
[1720494773862,0.0466264,3070.4,3070.2,9.51414]
[1720494774061,0.23091,3070.9,3070.2,6.25704]
[1720494774349,1.12827287,3070.8,3070.2,9.51409]
[1720494774679,0.04675449,3070.7,3070.3,3.257]
[1720494775050,2.3091,3071.0,3070.3,3.257]
[1720494775694,0.04683988,3070.9,3070.3,3.257]
[1720494776459,0.04683988,3070.9,3070.2,3.0]
[1720494776658,0.28243387,3070.9,3070.2,3.0]
[1720494776888,0.23559399,3070.9,3070.2,3.0]
[1720494777088,0.0468103,3070.8,3070.2,3.0]
[1720494777503,0.23559399,3070.9,3070.2,3.0]
[1720494777884,1.17508639,3070.8,3070.2,3.0]
[1720494778086,1.12827609,3070.8,3070.2,3.0]
[1720494778972,1.12827609,3070.8,3070.2,6.25709]
[1720494779414,1.12827609,3070.8,3070.3,3.25694]
[1720494780516,1.12827609,3070.8,3070.4,3.55]
[1720494780821,1.12827609,3070.8,3070.7,3.25658]
[1720494781016,1.12827609,3070.8,3070.7,3.80658]
[1720494781227,2.2838,3071.4,3070.8,3.25646]
[1720494781375,1.12808737,3071.3,3070.9,3.32021224]
[1720494781689,0.04711092,3071.2,3070.9,3.32021224]
[1720494782095,2.2838,3071.4,3070.9,3.32021224]
[1720494782474,0.04715566,3071.3,3070.9,3.32021224]
[1720494782672,0.04715566,3071.3,3070.8,3.25646]
[1720494782916,2.2852,3071.1,3070.5,3.0]
[1720494783110,2.2852,3071.1,3070.3,3.0]
[1720494783287,1.17511175,3071.0,3070.3,6.257]
[1720494783497,1.12821472,3070.9,3070.3,6.257]
[1720494783730,0.04695889,3071.0,3070.3,3.0]
[1720494783881,0.04698144,3070.8,3070.2,3.0]
[1720494784223,1.36147477,3070.9,3070.2,3.0]
[1720494784224,1.17514194,3070.7,3070.2,3.0]
[1720494784379,0.04688306,3070.7,3070.1,3.25713]
[1720494784584,3.52641331,3070.6,3069.2,0.66877409]
[1720494784907,3.52641331,3070.6,3068.7,2.834308]
[1720494784908,2.3981,3069.4,3068.0,0.66877409]
[1720494785221,1.70900308,3069.1,3067.9,3.25947]
[1720494785524,1.17421349,3069.0,3067.6,7.44]
[1720494785679,0.04590018,3069.0,3067.7,0.0640145]
[1720494785876,0.04590018,3069.0,3067.2,0.66877409]
[1720494785877,2.48197935,3068.9,3067.2,0.66877409]
[1720494786105,1.70822165,3068.6,3066.9,3.26052]
[1720494786317,3.76728546,3068.3,3066.8,3.26066]
[1720494786516,3.76728546,3068.3,3066.5,3.32511157]
[1720494786517,2.49630991,3068.2,3066.9,3.2606]
[1720494786679,0.48968099,3068.1,3067.0,3.2605]
[1720494786878,0.04454006,3068.1,3067.0,3.2605]
[1720494787081,0.04454006,3068.1,3067.3,3.26018]
[1720494787606,0.04492569,3068.0,3067.3,3.26018]
[1720494787811,2.4005,3068.3,3067.3,3.26018]
[1720494788125,0.04503414,3068.2,3067.3,3.26018]
[1720494788429,0.24455341,3068.1,3067.3,3.26018]
[1720494788634,0.04503414,3068.2,3067.4,3.32408524]
[1720494788799,0.04449728,3068.0,3067.7,3.25975]
[1720494789000,2.4005,3068.3,3067.7,3.25975]
[1720494789217,0.04397969,3068.2,3067.7,3.25975]
[1720494789419,2.74151458,3068.3,3067.7,3.25975]
[1720494789593,0.04397969,3068.2,3067.7,3.25975]
[1720494789993,0.04397969,3068.2,3067.4,3.0]
[1720494789994,0.32252912,3068.2,3067.4,3.0]
[1720494790190,0.27854943,3068.2,3067.3,3.0]
[1720494790488,0.36004313,3068.2,3067.3,3.0]
[1720494790694,0.31015577,3068.1,3067.1,3.26033]
[1720494791024,0.1154,3067.3,3067.2,9.58468558]
[1720494791411,0.1154,3067.3,3067.2,10.0706]
[1720494792212,0.1154,3067.3,3067.2,6.2603]
[1720494792540,0.1154,3067.3,3067.0,3.2605]
[1720494792729,0.1154,3067.3,3067.1,3.0]
[1720494793088,0.1154,3067.3,3066.8,3.2607]
[1720494793309,0.1154,3067.3,3066.9,3.26058]
[1720494793928,0.1154,3067.3,3066.5,3.26095]
[1720494794251,2.571,3067.3,3066.6,3.26092]
[1720494794611,2.571,3067.3,3066.7,3.0]
[1720494794812,2.571,3067.3,3066.8,0.06411745]
[1720494795067,2.571,3067.3,3066.8,3.32481745]
[1720494795561,2.571,3067.3,3066.8,3.2607]
[1720494796052,2.571,3067.3,3066.8,3.324812]
[1720494796210,2.571,3067.3,3066.9,3.26057]
[1720494796426,0.1154,3067.3,3066.9,3.26057]
[1720494796627,0.04345045,3067.2,3067.0,3.3245241]
[1720494796861,2.2695,3067.8,3067.1,0.06410007]
[1720494797171,2.49645,3067.8,3067.1,0.06410007]
[1720494797347,0.04366446,3067.7,3067.1,0.06410007]
[1720494797665,0.04366446,3067.7,3067.0,3.26042]
[1720494798068,0.08149934,3067.7,3066.7,3.0]
[1720494798283,0.08151531,3067.6,3066.2,10.70135]
[1720494798448,0.38365476,3067.6,3066.2,10.70135]
[1720494798768,2.4199,3067.5,3066.2,10.70135]
[1720494798986,0.08151588,3067.4,3066.2,7.44]
[1720494799190,0.08151588,3067.4,3066.3,3.26124]
[1720494799327,0.04358786,3067.3,3066.3,3.26124]
[1720494799524,0.04358786,3067.3,3066.4,3.26113]
[1720494799766,2.4199,3067.5,3066.4,3.26113]
[1720494799969,0.26776965,3067.4,3066.4,3.26113]
[1720494800180,2.4199,3067.5,3066.8,3.26064]
[1720494800384,2.4199,3067.5,3066.6,3.32502866]
[1720494800536,2.4199,3067.5,3067.0,3.26041]
[1720494800870,2.4199,3067.5,3067.1,3.32448955]
[1720494801272,2.4199,3067.5,3067.1,3.26039]
[1720494802076,2.4199,3067.5,3066.9,3.26055]
[1720494802279,2.4199,3067.5,3066.9,3.32464957]
[1720494802473,2.4199,3067.5,3066.9,3.26055]
[1720494803179,2.4199,3067.5,3066.6,3.2609]
[1720494803180,2.66189,3067.5,3066.6,3.2609]
[1720494803348,0.08151084,3067.4,3066.7,3.0]
[1720494803550,0.27434008,3067.3,3066.7,3.0]
[1720494803755,2.4199,3067.5,3066.7,3.0]
[1720494803960,0.04351659,3067.4,3066.7,3.0]
[1720494804288,2.4199,3067.5,3066.7,3.0]
[1720494804653,0.12555694,3067.4,3066.7,3.0]
[1720494804952,2.4199,3067.5,3066.9,3.2606]
[1720494805148,2.4199,3067.5,3066.7,6.26075]
[1720494805149,2.4199,3067.5,3066.8,3.26071]
[1720494805358,2.66189,3067.5,3066.8,3.26071]
[1720494805883,2.66189,3067.5,3066.7,6.26081]
[1720494806053,2.66189,3067.5,3066.7,3.0]
[1720494806252,2.66189,3067.5,3066.6,3.0]
[1720494806885,2.66189,3067.5,3066.2,10.70133]
[1720494806886,0.08151073,3067.4,3066.2,10.70133]
[1720494807097,0.34769973,3067.4,3066.3,3.26125]
[1720494807265,0.266189,3067.4,3066.3,3.26125]
[1720494807460,0.04397504,3067.3,3066.3,3.26125]
[1720494807667,0.39849723,3067.3,3066.4,3.26114]
[1720494807893,0.31698144,3067.3,3066.4,3.26114]
[1720494808205,0.2730064,3067.3,3066.4,3.26114]
[1720494809617,0.08151578,3067.2,3066.4,3.26114]
[1720494809783,0.2730064,3067.3,3066.4,3.26114]
[1720494809969,0.12538473,3067.2,3066.0,3.0]
[1720494810163,0.08151578,3067.2,3066.1,3.26138]
[1720494810370,0.2730064,3067.3,3066.2,3.0]
[1720494810715,2.41323098,3067.2,3066.2,3.0]
[1720494811010,2.41323098,3067.2,3066.2,3.26135]
[1720494811194,2.41323098,3067.2,3065.7,3.0]
[1720494811195,2.41323098,3067.2,3066.3,3.06415911]
[1720494811414,2.41323098,3067.2,3066.3,0.06415911]
[1720494811615,2.3698,3067.2,3066.3,0.06415911]
[1720494811784,0.04384922,3067.1,3066.5,3.26096]
[1720494811986,2.3698,3067.2,3066.3,3.32539911]
[1720494811987,2.3698,3067.2,3066.4,0.06413849]
[1720494812233,2.3698,3067.2,3067.0,3.26051]
[1720494813787,2.3245,3067.7,3067.0,0.06411261]
[1720494814012,2.3245,3069.1,3068.0,3.25944]
[1720494814249,2.3245,3069.1,3068.1,3.32336835]
[1720494814448,2.3245,3069.1,3068.1,3.25933]
[1720494815550,2.3245,3069.1,3068.3,3.25903]
[1720494815712,2.597961,3069.1,3068.3,3.25903]
[1720494817051,2.597961,3069.1,3068.2,3.25919]
[1720494817369,0.08146888,3069.0,3067.7,3.25969]
[1720494817517,2.58014299,3068.9,3067.5,3.0]
[1720494817858,2.39368488,3068.8,3067.5,3.25997]
[1720494818151,0.08148485,3068.7,3067.7,3.25976]
[1720494818326,0.35134694,3068.7,3067.7,3.25976]
[1720494818749,0.26986209,3068.7,3067.7,3.25976]
[1720494819217,0.35134692,3068.7,3067.6,3.0]
[1720494819419,0.26635469,3068.6,3067.6,3.0]
[1720494819759,0.08148483,3068.5,3067.6,3.0]
[1720494820066,0.26635469,3068.6,3067.7,3.25975]
[1720494821216,0.08148482,3068.5,3067.6,3.0]
[1720494821469,0.08148482,3068.5,3067.6,3.25987]
[1720494822119,2.2924,3068.3,3067.3,7.44]
[1720494822320,2.2924,3068.1,3066.9,3.26055]
[1720494822525,0.26635469,3068.6,3066.7,3.26083]
[1720494822526,2.2924,3067.9,3066.7,3.26083]
[1720494823025,0.03621633,3067.8,3066.8,3.32483372]
[1720494823223,2.52164,3067.9,3067.0,3.26043]
[1720494823545,0.03641159,3067.8,3067.3,3.26019]
[1720494823738,0.03641159,3067.8,3067.4,0.06407634]
[1720494824063,0.03641159,3067.8,3067.5,3.25998]
[1720494824579,2.2924,3067.9,3067.5,3.25998]
[1720494825726,2.2924,3067.9,3067.6,3.32393638]
[1720494826065,2.4119,3068.5,3067.7,3.25972]
[1720494826508,0.03694315,3068.4,3067.8,0.06406426]
[1720494826771,0.03694315,3068.4,3067.9,3.25954]
[1720494827063,2.4119,3068.5,3067.9,3.25954]
[1720494829069,2.4119,3068.5,3068.0,0.06405015]
[1720494829435,2.4119,3068.5,3067.9,3.25954]
[1720494830366,2.65309,3068.5,3067.9,3.25954]
[1720494830739,0.03707998,3068.4,3067.9,3.25954]
[1720494831274,0.03707998,3068.4,3067.7,3.25972]
[1720494831275,0.03707998,3068.4,3067.8,3.25965]
[1720494831638,2.65309,3068.5,3067.8,3.25962]
[1720494831947,0.30227932,3068.4,3067.8,3.25962]
[1720494832332,2.2979,3068.3,3067.4,3.26006]
[1720494832535,2.2979,3068.3,3067.3,3.2601]
[1720494832743,0.03698925,3068.2,3067.3,3.2601]
[1720494832973,2.2979,3068.3,3067.3,3.2601]
[1720494833156,0.03591293,3068.1,3067.3,3.2601]
[1720494833470,0.03591595,3068.0,3067.3,3.2601]
[1720494834980,0.03591595,3068.0,3067.4,3.26008]
[1720494835477,2.2979,3068.3,3067.4,3.26008]
[1720494835686,0.03580808,3067.9,3067.4,3.26008]
[1720494835888,2.2979,3068.3,3067.5,3.25994]
[1720494836105,2.52769,3068.3,3067.5,3.25994]
[1720494836394,0.0358645,3068.2,3067.5,3.25994]
[1720494836545,0.0358645,3068.2,3067.6,3.25987]
[1720494836740,0.0358645,3068.2,3067.7,3.25975]
[1720494837068,0.0358645,3068.2,3067.5,3.25994]
[1720494837069,0.0358645,3068.2,3067.5,3.25991]
[1720494837269,0.0358645,3068.2,3067.6,3.25987]
[1720494837583,0.26924095,3068.2,3067.6,3.25987]
[1720494838039,0.26924095,3068.2,3067.5,3.25991]
[1720494838890,0.26924095,3068.2,3067.6,3.25987]
[1720494840586,0.26924095,3068.2,3067.3,3.26015]
[1720494840789,0.0358645,3068.2,3067.8,3.25966]
[1720494841281,2.2979,3068.3,3067.8,3.25966]
[1720494841495,0.03576319,3068.1,3067.8,3.25966]
[1720494841800,0.03582892,3068.2,3067.8,3.25966]
[1720494841985,2.2979,3068.3,3067.8,3.25966]
[1720494842301,0.03606015,3068.2,3067.8,3.25966]
[1720494842654,0.03606015,3068.2,3067.6,3.25986]
[1720494842990,0.26945616,3068.2,3067.6,6.51963]
[1720494843177,0.26945616,3068.2,3067.4,3.26005]
[1720494843497,0.25673562,3068.1,3067.2,3.26027]
[1720494843671,1.38608868,3068.1,3067.2,3.26027]
[1720494843857,1.12935306,3068.0,3067.2,3.26027]
[1720494844058,0.03576379,3067.9,3067.4,3.26008]
[1720494844896,0.25673562,3068.1,3067.4,3.26008]
[1720494844897,0.03460166,3067.8,3067.4,3.26008]
[1720494845063,0.03460166,3067.8,3067.7,3.25977]
[1720494845264,2.2979,3068.3,3067.7,3.25977]
[1720494845484,1.16387758,3068.2,3067.7,3.25977]
[1720494845715,1.12927078,3068.1,3067.1,3.26038]
[1720494845894,0.0346068,3068.2,3067.7,3.25976]
[1720494846083,0.03462929,3068.0,3067.7,3.25976]
[1720494846415,0.03467205,3068.1,3067.3,3.26012]
[1720494846716,2.52769,3068.3,3067.3,3.26012]
[1720494846717,0.0343801,3068.0,3067.4,3.26008]
[1720494846916,0.0343801,3068.0,3067.2,3.26029]
[1720494847089,2.3583,3067.9,3067.0,3.0]
[1720494847295,0.23583,3067.8,3066.9,3.26057]
[1720494847614,0.27019343,3067.8,3067.2,3.26027]
[1720494847798,0.03436343,3067.8,3067.2,3.26027]
[1720494848008,2.3583,3067.9,3067.2,3.26027]
[1720494848694,0.03450536,3067.8,3067.2,3.26027]
[1720494848913,0.03450536,3067.8,3067.1,3.26033]
[1720494849074,2.3583,3067.9,3067.1,3.26033]
[1720494849075,2.3583,3067.9,3067.2,3.2603]
[1720494849679,2.3583,3067.9,3067.1,3.26033]
[1720494849911,0.27025037,3067.8,3067.1,3.2604]
[1720494850091,0.23583,3067.8,3067.1,3.2604]
[1720494850879,2.3583,3067.9,3067.1,3.2604]
[1720494850880,2.3583,3067.9,3067.2,3.26028]
[1720494851521,2.3583,3067.9,3066.8,3.26066]
[1720494851696,2.4626,3067.7,3066.6,7.44]
[1720494851891,0.08149709,3067.8,3066.5,3.261]
[1720494851892,2.4626,3067.5,3066.5,3.261]
[1720494852319,0.03424512,3067.4,3066.5,3.261]
[1720494852525,0.11575871,3067.4,3066.5,3.261]
[1720494852929,0.03424512,3067.4,3066.5,3.26094]
[1720494853286,0.03424512,3067.4,3066.6,3.26093]
[1720494853498,0.03424512,3067.4,3066.3,3.26121]
[1720494853499,0.51021938,3067.4,3066.3,3.26121]
[1720494853712,1.87648759,3067.4,3066.4,3.26113]
[1720494853894,1.79497584,3067.4,3066.5,3.26102]
[1720494854118,0.42870763,3067.4,3066.5,3.26102]
[1720494854300,0.43390916,3067.3,3066.5,3.26102]
[1720494854695,0.0339406,3067.2,3066.5,3.26102]
[1720494856288,2.3186,3067.1,3066.3,3.26117]
[1720494856488,2.3186,3067.1,3066.4,3.26114]
[1720494856725,0.03385235,3067.0,3066.5,3.26102]
[1720494857288,3.68486821,3067.7,3066.8,3.26063]
[1720494857495,1.49803,3067.6,3066.8,3.26063]
[1720494857789,0.03420334,3067.6,3067.0,3.26051]
[1720494860601,0.03420334,3067.6,3067.1,3.2604]
[1720494861428,0.03420334,3067.6,3067.0,3.26051]
[1720494861658,0.03420334,3067.6,3067.1,3.2604]
[1720494862000,0.03420334,3067.6,3067.0,3.26051]
[1720494862226,0.03420334,3067.6,3067.1,3.2604]
[1720494862429,0.03420334,3067.6,3067.1,3.32449652]
[1720494862595,0.03420334,3067.6,3067.1,0.06409652]
[1720494862796,0.03420334,3067.6,3067.4,3.26005]
[1720494863000,2.365,3068.1,3067.5,3.32397059]
[1720494864868,2.365,3068.1,3067.6,3.25986]
[1720494865289,2.365,3068.1,3067.7,3.25976]
[1720494865584,2.365,3068.1,3067.7,3.3238304]
[1720494865725,0.0332065,3068.0,3067.7,3.3238304]
[1720494867478,0.0332065,3068.0,3067.8,3.25965]
[1720494867988,0.0332065,3068.0,3067.7,0.0640704]
[1720494867989,0.0332065,3068.0,3067.6,3.25986]
[1720494868261,0.0332065,3068.0,3067.2,0.55]
[1720494868555,2.365,3068.1,3067.5,3.25997]
[1720494868924,0.03301224,3068.0,3067.5,3.25997]
[1720494869148,2.365,3068.1,3067.5,3.25997]
[1720494869344,0.03296947,3067.9,3067.5,3.25997]
[1720494869567,2.365,3068.1,3067.5,3.25997]
[1720494869865,0.03302537,3068.0,3067.5,3.25997]
[1720494871248,2.365,3068.1,3067.5,3.25997]
[1720494871770,2.365,3068.1,3067.6,3.25984]
[1720494872660,2.365,3068.1,3067.4,3.26008]
[1720494873560,2.365,3068.1,3067.3,3.2601]
[1720494873761,2.73820307,3068.1,3066.9,7.44]
[1720494873965,1.3670307,3067.7,3066.9,7.44]
[1720494874133,2.49643855,3067.6,3066.9,7.44]
[1720494874335,3.6968307,3067.4,3066.9,7.44]
[1720494874560,1.12940785,3067.3,3066.4,3.26104]
[1720494874759,2.52912425,3067.3,3066.3,3.26125]
[1720494874964,1.12940785,3067.2,3066.3,3.26125]
[1720494875182,1.3997164,3067.3,3066.3,3.26125]
[1720494875353,0.03248524,3067.1,3066.4,3.26114]
[1720494875562,0.03301168,3067.2,3066.4,3.26114]
[1720494875888,0.03283722,3067.1,3066.4,3.26114]
[1720494876053,0.03283722,3067.1,3066.2,3.26136]
[1720494876054,1.97399668,3067.3,3066.2,3.26136]
[1720494876254,1.16192154,3067.2,3066.3,3.0]
[1720494876477,1.12972808,3067.1,3066.2,3.26136]
[1720494876643,0.03210784,3067.0,3066.2,3.26136]
[1720494876851,0.03210784,3067.0,3065.7,7.44]
[1720494876852,2.3125,3066.9,3065.7,7.44]
[1720494877090,0.03184438,3066.8,3065.7,10.70179]
[1720494877691,0.03184438,3066.8,3065.8,6.26178]
[1720494877993,0.03184438,3066.8,3065.8,6.3259502]
[1720494878499,2.3125,3066.9,3066.0,3.26157]
[1720494878974,0.03191335,3066.8,3066.0,3.26157]
[1720494879285,0.03191335,3066.8,3065.8,6.26178]
[1720494879286,2.3125,3066.9,3065.8,6.26178]
[1720494879473,0.40378715,3066.8,3065.8,6.26178]
[1720494879680,0.37120339,3066.8,3065.8,6.26178]
[1720494880198,0.37120339,3066.8,3065.8,3.0]
[1720494881958,2.39402915,3066.7,3065.4,3.26213]
[1720494882276,1.12993444,3066.6,3065.3,3.2623]
[1720494882471,3.79173605,3066.7,3065.3,3.2623]
[1720494882472,0.57370394,3066.5,3065.3,3.2623]
[1720494883498,2.4788,3066.4,3065.2,7.44]
[1720494883842,0.08154304,3066.3,3065.2,7.44]
[1720494884042,0.11317425,3066.3,3065.2,7.44]
[1720494884299,0.42158838,3066.3,3065.2,7.44]
[1720494884726,2.4378,3066.2,3064.9,3.26272]
[1720494884867,0.0815482,3066.1,3064.9,3.26272]
[1720494885071,3.03163121,3066.3,3064.7,10.70295]
[1720494885072,2.52611847,3066.0,3064.7,10.70295]
[1720494885272,2.52611847,3066.0,3064.7,3.26295]
[1720494885899,2.52611847,3066.0,3064.8,3.0]
[1720494886095,2.77873032,3066.0,3064.8,3.0]
[1720494886317,0.08155561,3065.9,3064.7,3.26295]
[1720494886513,2.77873032,3066.0,3064.8,3.26284]
[1720494886725,0.03299832,3065.8,3064.8,3.26284]
[1720494886865,0.03304423,3065.9,3064.8,3.26284]
[1720494887072,0.03304423,3065.9,3064.5,4.96913]
[1720494887073,0.3192054,3065.9,3064.7,3.26295]
[1720494887327,0.08155567,3065.8,3064.7,3.26295]
[1720494887614,0.3192054,3065.9,3064.7,3.26295]
[1720494887906,0.03316512,3065.8,3064.7,3.26295]
[1720494888115,0.11472079,3065.8,3064.6,3.26304]
[1720494888320,2.3346,3065.7,3064.8,3.26285]
[1720494888814,0.03318979,3065.6,3064.9,3.32697489]
[1720494889025,0.03318979,3065.6,3065.0,0.55]
[1720494889177,2.3346,3065.7,3065.1,3.326667]
[1720494890024,2.3942,3066.6,3065.3,3.26229]
[1720494890313,2.3942,3066.6,3065.4,3.26219]
[1720494890314,0.0313378,3066.5,3065.4,3.26219]
[1720494893001,2.3982461,3066.4,3065.1,3.26249]
[1720494893321,0.27649385,3066.3,3065.1,3.26249]
[1720494894222,0.27649385,3066.3,3064.9,7.44]
[1720494894223,2.45994581,3066.2,3064.9,7.44]
[1720494894529,2.41180673,3066.1,3064.9,7.44]
[1720494895010,2.45995167,3066.0,3064.9,7.44]
[1720494895374,0.03331494,3065.9,3064.9,7.44]
[1720494896307,0.03331494,3065.9,3064.3,3.26328]
[1720494896308,2.4456,3065.8,3064.3,3.26328]
[1720494896473,0.03322313,3065.7,3064.3,3.26328]
[1720494896685,2.2909,3065.6,3064.1,3.26352]
[1720494896921,0.11479022,3065.7,3064.1,3.26352]
[1720494896922,2.61303995,3065.5,3064.1,3.26352]
[1720494897076,5.2909,3065.4,3064.0,7.44]
[1720494897276,2.2909,3065.2,3064.0,7.44]
[1720494897648,2.2909,3065.0,3063.5,7.44]
[1720494897771,2.2909,3065.0,3063.7,3.264]
[1720494897971,0.03274254,3064.9,3063.7,3.264]
[1720494898246,2.2909,3065.0,3063.9,3.26379]
[1720494898433,2.4889,3064.8,3063.6,3.2641]
[1720494898641,2.57049001,3064.7,3063.3,3.26443]
[1720494898951,2.8748671,3064.7,3063.2,0.1140726]
[1720494899075,3.0,3064.6,3063.2,3.3786226]
[1720494899278,2.51000023,3064.5,3063.2,0.1140726]
[1720494899511,2.67940002,3064.4,3063.2,0.1140726]
[1720494899682,2.4284,3064.2,3063.2,0.1140726]